[Event "61st Mongolian-ch Open 2023"]
[Site "Khovd"]
[Date "2023.05.22"]
[Round "1.1"]
[White "Enkhnar, Enkhbaatar"]
[Black "Bilguun, Sumiya"]
[Result "1/2-1/2"]
[ECO "B41"]
[WhiteElo "2360"]
[BlackElo "2474"]
[Annotator "TA"]
[PlyCount "60"]
[EventDate "2023.05.22"]
[EventType "tourn"]
[EventCountry "MGL"]
[SourceTitle "playchess.com"]
[Source "ChessBase"]
[SourceQuality "1"]
[TimeControl "40/5400+30:1800+30"]

{[%evp 23,60,55,63,33,59,58,54,45,57,29,18,8,54,0,45,0,61,15,36,36,18,20,51,0,28,0,12,0,0,-7,62,-34,-42,-41,-36,-34,0,0,0]} 1. e4 {[%emt 0:00:08]} c5 {[%emt 0:00:05]} 2. Nf3 {[%emt 0:00:29]} a6 {[%emt 0:00:55]} 3. c4 {[%emt 0:00:00]} e6 {[%emt 0:00:00]} 4. Nc3 {[%emt 0:00:12]} Qc7 {[%emt 0:01:41]} 5. d4 {[%emt 0:00:14]} cxd4 {[%emt 0:00:06]} 6. Nxd4 {[%emt 0:00:04]} Nf6 {[%emt 0:00:26]} 7. Be2 {[%emt 0:02:01]} b6 {[%emt 0:08:42]} 8. O-O {[%emt 0:00:33]} Bb7 {[%emt 0:00:10]} 9. f3 {[%emt 0:00:13]} d6 {[%emt 0:02:59]} 10. Be3 {[%emt 0:00:23]} Nbd7 {[%emt 0:00:07]} 11. Qd2 {[%emt 0:00:07]} Be7 {[%emt 0:00:06]} 12. Rfc1 {[%emt 0:00:12]} O-O {[%emt 0:00:13]} 13. a4 {[%emt 0:00:04][%cal Oa4a5] B41: Sicilian: Kan Variation: 5 c4.} a5 {[%emt 0:11:21] [#]} 14. Rd1 $146 {[%emt 0:07:09]} ({Predecessor:} 14. Ncb5 Qb8 15. Nb3 Rd8 16. Rd1 {½-½ Garcia Pantoja,R (2473)-Barrientos Chavarriaga,S (2461) Manizales op 26th 2017 (8)}) 14... Nc5 {[%emt 0:02:31]} 15. Qe1 {[%emt 0:01:33] White is slightly better.} Rad8 {[%emt 0:09:14]} 16. Qg3 {[%emt 0:01:00]} Nh5 {[%emt 0:06:22]} 17. Qh3 {[%emt 0:01:00] [#] aiming for Ndb5.} Nf6 {[%emt 0:00:08]} (17... g6 $11 {is superior.}) 18. Qg3 {[%emt 0:01:14]} Nh5 {[%emt 0:03:30]} 19. Qh3 {[%emt 0:01:38] Threatens to win with Ndb5.} Nf6 {[%emt 0:00:08]} 20. g4 {[%emt 0:01:38]} (20. Rd2 $14) 20... g6 {[%emt 0:12:51]} 21. Bh6 {[%emt 0:05:07]} Rfe8 {[%emt 0:00:22]} 22. Qg3 {[%emt 0:00:14]} Kh8 {[%emt 0:07:25]} 23. Rac1 {[%emt 0:08:28]} (23. Ndb5 $14 Qc6 24. Be3) 23... Rd7 {[%emt 0:08:02]} 24. Rc2 {[%emt 0:06:05]} (24. Ndb5 $5 {[%cal Rb5c7]} Qd8 25. Bf4 $14) 24... Qd8 {[%emt 0:01:35][%cal Og6g5]} (24... g5 $5 {[%cal Rf6g8]}) 25. Be3 {[%emt 0:02:25]} h5 {[%emt 0:06:26]} 26. h3 {[%emt 0:07:31]} Kg7 {[%emt 0:01:21]} (26... Nh7 $11) 27. Rcd2 {[%emt 0:02:30] White is more active.} ({Much worse is} 27. Qf4 Rh8 28. g5 Nh7 $15) ({White should play} 27. g5 $14 Nh7 28. h4) 27... e5 $15 {[%emt 0:02:56]} 28. Ndb5 {[%emt 0:02:41]} hxg4 {[%emt 0:00:30]} 29. hxg4 {[%emt 0:00:37][%cal Oe3h6]} ({Avoid the trap} 29. Qh4 $2 Rh8 30. Qe1 Rxh3 $19) 29... Rh8 {[%emt 0:02:44] Dodges Bh6+} (29... Nb3 $5 {[%cal Rb3d2]}) 30. Bf1 $1 {[%emt 0:05:41]} Ne8 {[%emt 0:02:05] Weighted Error Value: White=0.25 (precise) /Black=0.16 (very precise)} 1/2-1/2

[Event "61st Mongolian-ch Open 2023"]
[Site "Khovd"]
[Date "2023.05.22"]
[Round "1.2"]
[White "Amartuvshin, Ganzorig"]
[Black "Erdene, Ganzorig"]
[Result "1-0"]
[ECO "D85"]
[WhiteElo "2407"]
[BlackElo "2278"]
[Annotator "TA"]
[PlyCount "125"]
[EventDate "2023.05.22"]
[EventType "tourn"]
[EventCountry "MGL"]
[SourceTitle "playchess.com"]
[Source "ChessBase"]
[SourceQuality "1"]
[TimeControl "40/5400+30:1800+30"]

{[%evp 19,125,11,20,12,16,10,13,14,14,0,0,0,0,-55,-68,-72,-56,-86,-20,-22,-3,-13,-16,-8,14,14,21,6,6,6,7,0,0,0,39,39,41,39,39,39,39,39,74,0,62,0,0,0,0,0,0,0,0,0,0,0,0,0,0,0,238,210,193,187,179,0,0,0,0,0,0,0,0,0,0,0,0,0,34,34,34,34,34,34,1428,1388,1333,1147,8411,0,1023,656,4133,2324,10250,8620,6095,5061,2316,698,12833,1857,29975,29978,29979,29980,29981,29975]} 1. d4 {[%emt 0:00:05]} Nf6 {[%emt 0:00:07]} 2. c4 {[%emt 0:00:07]} g6 {[%emt 0:00:05]} 3. Nc3 {[%emt 0:00:08]} d5 {[%emt 0:00:06]} 4. cxd5 {[%emt 0:00:10]} Nxd5 {[%emt 0:00:07]} 5. e4 {[%emt 0:00:04]} Nxc3 {[%emt 0:00:08]} 6. bxc3 {[%emt 0:00:04]} Bg7 {[%emt 0:00:09]} 7. Be3 {[%emt 0:00:14]} c5 {[%emt 0:03:03]} 8. Rc1 {[%emt 0:00:22]} O-O {[%emt 0:00:32]} 9. Nf3 {[%emt 0:00:07]} Qa5 {[%emt 0:00:25]} 10. Qd2 {[%emt 0:00:10]} Rd8 {[%emt 0:00:24][%cal Bf8d8,Bd8d7,Bd7d5][%mdl 32]} 11. h4 {[%emt 0:00:33] D85: Exchange Grünfeld: Unusual White 7th moves and lines with 7 Nf3.} cxd4 {[%emt 0:04:45]} 12. cxd4 {[%emt 0:00:14]} Qxd2+ {[%emt 0:00:09]} 13. Bxd2 {[%emt 0:00:39] The position is equal.} Na6 {[%emt 0:02:49] [#]} 14. Bxa6 $146 {[%emt 0:23:24]} (14. h5 {feels hotter.} Bg4 15. hxg6 hxg6 16. Ne5) ({Predecessor:} 14. Bc4 Bd7 15. Rb1 Rac8 16. Be2 Bc6 17. d5 Bd7 18. Ba5 Re8 19. O-O Nc5 20. Rfe1 {0-1 Narayanan,S (2616)-Cheparinov,I (2666) Belt and Road Hunan op-A 2019 (2)}) 14... bxa6 {[%emt 0:00:12]} 15. Ba5 {[%emt 0:00:18]} Rd7 {[%emt 0:02:51]} 16. d5 {[%emt 0:00:42]} (16. O-O $11) 16... f5 $15 {[%emt 0:01:57]} 17. exf5 {[%emt 0:09:41]} Rxd5 {[%emt 0:03:37]} 18. Bb4 {[%emt 0:01:42]} a5 {[%emt 0:08:14]} (18... gxf5 $6 19. Bxe7 Be6 20. O-O $11) (18... Bxf5 $17 {...Rb8 is the strong threat.} 19. O-O e5) 19. Bxe7 $11 {[%emt 0:03:52]} Ba6 {[%emt 0:01:12]} (19... Rxf5 {simplifies} 20. O-O Bb7 21. Rc5 Rxc5 22. Bxc5 Rc8) 20. f6 {[%emt 0:06:54]} Re8 {[%emt 0:02:47]} 21. Rd1 {[%emt 0:01:14]} Bc4 {[%emt 0:20:00]} ({Don't take} 21... Bxf6 22. Rxd5 Bxe7 23. Kd1 $16 (23. Rxa5 $2 Bb4+ 24. Kd1 Bxa5 $19)) 22. Rxd5 {[%emt 0:01:40]} Bxd5 {[%emt 0:00:43] This pair of bishops is nice.} 23. O-O {[%emt 0:01:16]} Bxf3 {[%emt 0:00:21]} 24. gxf3 {[%emt 0:00:06] Threatening Rd1.} Kf7 {[%emt 0:00:29]} 25. fxg7 {[%emt 0:02:38]} Rxe7 {[%emt 0:01:46][%mdl 4096] Endgame KR-KR} 26. Rc1 {[%emt 0:00:40]} Kxg7 {[%emt 0:01:45]} (26... Re2 $5) 27. Rc5 {[%emt 0:00:12]} Rf7 {[%emt 0:02:06]} 28. Rxa5 {[%emt 0:00:07]} Rxf3 {[%emt 0:00:55]} 29. Rxa7+ {[%emt 0:00:05]} Kf6 $1 {[%emt 0:00:10]} 30. Kg2 {[%emt 0:01:12]} Rc3 {[%emt 0:00:10]} 31. Ra4 {[%emt 0:01:47]} (31. a4 $16) 31... h5 {[%emt 0:01:07]} ({Black should play} 31... Kf5 $11) 32. Rf4+ {[%emt 0:00:54]} (32. f3 $1 $14) 32... Ke5 {[%emt 0:00:33]} 33. Ra4 {[%emt 0:00:49]} Kf5 {[%emt 0:00:12]} 34. f3 {[%emt 0:00:26]} Rc1 {[%emt 0:00:36]} 35. Kf2 {[%emt 0:00:41]} Ra1 {[%emt 0:00:47]} 36. a3 {[%emt 0:00:24]} Ke5 {[%emt 0:01:53]} 37. Re4+ {[%emt 0:00:16]} Kf5 {[%emt 0:00:06]} 38. a4 {[%emt 0:00:21]} Ra3 {[%emt 0:00:12]} 39. Rb4 {[%emt 0:00:57]} Ke5 $2 {[%emt 0:00:06] [#]} (39... Ra1 $11 {and Black has nothing to worry.}) 40. Kg3 $1 $18 {[%emt 0:00:09]} Kf5 {[%emt 0:02:06]} 41. Rb5+ {[%emt 0:32:21]} Kf6 {[%emt 0:30:07]} 42. a5 {[%emt 0:04:31]} (42. Ra5 $18) 42... Ra4 $11 {[%emt 0:00:07]} 43. Rb6+ {[%emt 0:00:42]} Kf5 {[%emt 0:00:23]} 44. Rb5+ {[%emt 0:03:24]} Kf6 {[%emt 0:00:09]} 45. Rb6+ {[%emt 0:03:57]} Kf5 {[%emt 0:00:07]} 46. a6 {[%emt 0:00:04]} Ra2 {[%emt 0:00:16]} 47. Rc6 {[%emt 0:00:06]} Ra4 {[%emt 0:00:52]} 48. Kf2 {[%emt 0:01:23]} Kf4 {[%emt 0:01:50]} 49. Rf6+ {[%emt 0:00:09]} Ke5 {[%emt 0:00:59]} 50. Rxg6 {[%emt 0:00:07]} Kf4 {[%emt 0:02:58]} 51. Ke2 {[%emt 0:03:08]} Ra3 $2 {[%emt 0:03:45][%mdl 8192] [#]} (51... Kf5 $14 52. Rc6 Kf4) 52. Kd2 $1 $18 {[%emt 0:00:16]} Kf5 {[%emt 0:10:13]} 53. Rh6 {[%emt 0:01:05] Strongly threatening Kc2.} Kf4 {[%emt 0:01:21]} 54. Rg6 {[%emt 0:12:38]} ({Worse is} 54. Rxh5 Rxa6 55. Rh7 Kxf3 $11) (54. Kc2 $142 Kxf3 55. Kb2 (55. Rxh5 Rxa6 56. Rh8 Kg4 $11)) 54... Kf5 $1 {[%emt 0:00:13]} 55. Rc6 {[%emt 0:02:00] And now Kc2 would win.} Kf4 {[%emt 0:00:28][%cal Of4g3]} 56. Kc2 {[%emt 0:01:26] Black must now prevent Kb2.} Kg3 {[%emt 0:01:52]} 57. Kb2 {[%emt 0:08:33]} Ra5 {[%emt 0:00:11]} 58. Kb3 {[%emt 0:00:14] Threatens to win with Kb4.} Kxh4 {[%emt 0:01:29]} 59. Kb4 {[%emt 0:00:06]} Ra1 {[%emt 0:05:13]} 60. Rg6 {[%emt 0:00:12] Intending Kb5 and mate.} Rf1 {[%emt 0:02:29]} 61. a7 {[%emt 0:00:37] White mates.} Ra1 {[%emt 0:00:20]} 62. Rg7 {[%emt 0:00:10]} Kh3 {[%emt 0:00:54]} 63. Kb5 {[%emt 0:00:06] Weighted Error Value: White=0.27 (precise) /Black=0.21 (precise)} 1-0

[Event "61st Mongolian-ch Open 2023"]
[Site "Khovd"]
[Date "2023.05.22"]
[Round "1.3"]
[White "Gan-Erdene, Sugar"]
[Black "Munguntuul, Batkhuyag"]
[Result "1-0"]
[ECO "D23"]
[WhiteElo "2420"]
[BlackElo "2408"]
[Annotator "TA"]
[PlyCount "119"]
[EventDate "2023.05.22"]
[EventType "tourn"]
[EventCountry "MGL"]
[SourceTitle "playchess.com"]
[Source "ChessBase"]
[SourceQuality "1"]
[TimeControl "40/5400+30:1800+30"]

{[%evp 16,119,14,8,20,19,0,6,8,0,14,12,17,22,26,18,17,14,28,25,39,37,79,67,82,47,50,59,53,46,58,35,68,57,81,83,74,71,162,72,85,77,80,68,90,59,62,25,27,38,36,31,43,40,43,35,26,26,46,30,239,232,324,316,308,268,239,225,205,193,207,209,208,210,379,387,321,169,430,404,1172,1178,1096,59,1009,977,1043,969,1233,1057,29964,29968,29959,29961,29960,29964,29963,29965,29965,29967,29966,29968,29968,29968,29971,29974]} 1. d4 {[%emt 0:00:02]} d5 {[%emt 0:00:03]} 2. c4 {[%emt 0:00:10]} c6 {[%emt 0:00:02]} 3. Nf3 {[%emt 0:00:26]} Nf6 {[%emt 0:00:04]} 4. Qc2 {[%emt 0:00:11]} dxc4 {[%emt 0:00:11]} 5. Qxc4 {[%emt 0:00:07]} Bf5 {[%emt 0:00:10]} 6. g3 {[%emt 0:00:05]} e6 {[%emt 0:00:07]} 7. Bg2 {[%emt 0:00:15]} Nbd7 {[%emt 0:00:02]} 8. O-O {[%emt 0:00:08]} Be7 {[%emt 0:00:06]} 9. e3 {[%emt 0:00:22]} O-O {[%emt 0:00:13] D23: Queen's Gambit Accepted: 3 Nf3 Nf6 sidelines.} 10. Rd1 {[%emt 0:00:17]} Qc7 {[%emt 0:02:42] 10...Rc8 is the modern continuation.} 11. Nc3 {[%emt 0:00:50]} e5 {[%emt 0:02:31] The position is equal.} 12. h3 {[%emt 0:02:02]} Rfe8 {[%emt 0:11:52]} 13. dxe5 {[%emt 0:08:32]} (13. Ng5 Bg6 $15) 13... Nxe5 {[%emt 0:01:43]} 14. Nxe5 {[%emt 0:00:04]} Qxe5 {[%emt 0:00:17]} 15. e4 {[%emt 0:00:05]} Be6 {[%emt 0:07:16]} 16. Qe2 {[%emt 0:00:12]} Bb4 {[%emt 0:03:05]} 17. f4 {[%emt 0:06:28]} Qa5 {[%emt 0:07:15] [#]} 18. Bd2 $146 {[%emt 0:00:25]} ({Predecessor:} 18. Be3 Rad8 19. Qf2 Rxd1+ 20. Rxd1 Bxc3 21. bxc3 Qa4 22. Rd4 Bc4 23. Qd2 c5 24. Rd8 Rxd8 25. Qxd8+ {½-½ Mamedyarov,S (2761)-Aronian,L (2783) Moscow Tal Memorial 5th 2010 (4)}) 18... Bf5 {[%emt 0:11:46]} 19. e5 {[%emt 0:17:06]} Rad8 {[%emt 0:08:20]} 20. Be1 {[%emt 0:03:08]} Nd5 {[%emt 0:05:26]} 21. Nxd5 {[%emt 0:00:37]} cxd5 {[%emt 0:37:49]} 22. Bxb4 {[%emt 0:00:27]} Qxb4 {[%emt 0:00:30]} 23. Qd2 {[%emt 1:00:01] Prevents d4.} Qc5+ {[%emt 0:00:30]} 24. Qd4 {[%emt 0:00:30]} Rc8 {[%emt 0:00:30] [#]} 25. Qxc5 $1 {[%emt 0:00:00]} Rxc5 {[%emt 0:00:00]} 26. Rac1 {[%emt 0:01:00]} Rb5 {[%emt 0:01:00]} (26... Rxc1 $16 27. Rxc1 d4) 27. b3 {[%emt 0:00:30]} (27. Rxd5 $6 Rxb2 28. Rdd1 Be6 $11) (27. Bxd5 $18 {And now Rc7 would win.} Rxb2 28. Rc7) 27... Be6 $16 {[%emt 0:00:30]} 28. g4 {[%emt 0:00:00] Black must now prevent f5.} g6 {[%emt 0:00:00]} 29. Rd4 {[%emt 0:00:00]} Kg7 {[%emt 0:00:00]} 30. Kf2 {[%emt 0:00:00]} Re7 {[%emt 0:00:00]} 31. b4 {[%emt 0:00:00] White is more active.} a5 {[%emt 0:00:00]} 32. a3 {[%emt 0:00:00]} axb4 {[%emt 0:00:00]} 33. axb4 {[%emt 0:00:00]} f6 {[%emt 0:00:00]} 34. exf6+ {[%emt 0:00:00]} Kxf6 {[%emt 0:00:00]} 35. Bf1 {[%emt 0:00:00]} Rb6 {[%emt 0:00:00]} 36. b5 {[%emt 0:00:00]} Bf7 {[%emt 0:00:00]} 37. Bd3 {[%emt 0:00:00]} Rbe6 $2 {[%emt 0:00:00] White now steadily converts the win.} (37... Ke6 $11 {and Black stays safe.}) 38. Rxd5 {[%emt 0:00:00]} Re3 {[%emt 0:00:00]} 39. Rd6+ {[%emt 0:00:00]} Kg7 {[%emt 0:02:05] [#]} 40. Rd7 $3 {[%emt 0:00:00][%mdl 576] Deflection} Rxd7 {[%emt 0:01:03]} 41. Kxe3 $18 {[%emt 0:24:46][%mdl 4096] Endgame KRB-KRB} Re7+ {[%emt 0:30:22]} 42. Kf2 {[%emt 0:00:16]} Bd5 {[%emt 0:02:39]} 43. Rc8 {[%emt 0:06:13]} Rd7 {[%emt 0:00:00]} 44. Bc4 {[%emt 0:00:00]} Bxc4 {[%emt 0:00:00]} (44... b6 45. Be2 Bh1) 45. Rxc4 {[%emt 0:00:00] KR-KR} Kf6 {[%emt 0:00:00]} 46. Ke3 {[%emt 0:00:00]} (46. g5+ $142 Kf5 47. Ke3) 46... Rd5 $2 {[%emt 0:00:00]} (46... g5 {was necessary.} 47. fxg5+ Kxg5 48. Rc5+ Kf6) 47. Rc7 {[%emt 0:00:00][%csl LRb7,LRh7]} Rxb5 {[%emt 0:00:00]} (47... g5 $142 48. fxg5+ Rxg5 49. Rxb7 h6) 48. g5+ {[%emt 0:00:00]} ({Weaker is} 48. Rxh7 Rb3+ 49. Ke4 Rb4+ 50. Ke3 Rb3+ 51. Kf2 Rc3 $16) 48... Kf5 {[%emt 0:00:00]} 49. Rf7+ {[%emt 0:00:00]} ({Not} 49. Rxh7 Rb3+ 50. Kd4 Rb4+ 51. Kc5 Rxf4 $11) 49... Ke6 {[%emt 0:00:00]} 50. Rxh7 {[%emt 0:00:00]} Rb3+ {[%emt 0:00:00]} 51. Ke4 {[%emt 0:00:00]} b5 {[%emt 0:00:00]} 52. Rg7 {[%emt 0:00:00]} Rxh3 {[%emt 0:00:00]} 53. Rxg6+ {[%emt 0:00:00] White mates.} Kd7 {[%emt 0:00:00]} 54. Rb6 {[%emt 0:00:00]} Rb3 {[%emt 0:00:00]} 55. g6 {[%emt 0:00:00]} Kc7 {[%emt 0:00:00]} 56. g7 {[%emt 0:00:00]} Rg3 {[%emt 0:00:00]} 57. Rxb5 {[%emt 0:00:00]} ({Less strong is} 57. Ra6 Kb7 58. f5 Rxg7 $16) 57... Rxg7 {[%emt 0:00:00]} 58. Rd5 {[%emt 0:00:00]} Rg8 {[%emt 0:00:00]} 59. f5 {[%emt 0:00:00][%cal Bf4f5,Bf5f6][%mdl 32]} Rd8 {[%emt 0:00:00]} 60. f6 {[%emt 0:00:00] Weighted Error Value: White=0.10 (very precise) /Black=0.37} 1-0

[Event "61st Mongolian-ch Open 2023"]
[Site "Khovd"]
[Date "2023.05.22"]
[Round "1.4"]
[White "Munkhgal, Gombosuren"]
[Black "Chinguun, Sumiya"]
[Result "0-1"]
[ECO "E69"]
[WhiteElo "2463"]
[BlackElo "2298"]
[Annotator "TA"]
[PlyCount "82"]
[EventDate "2023.05.22"]
[EventType "tourn"]
[EventCountry "MGL"]
[SourceTitle "playchess.com"]
[Source "ChessBase"]
[SourceQuality "1"]
[TimeControl "40/5400+30:1800+30"]

{[%evp 22,82,17,15,33,20,23,10,18,29,25,15,8,0,78,76,85,53,75,-75,-69,-70,-72,-73,-82,-83,-64,-89,-107,-109,-108,-119,-98,-122,-38,-64,-27,-81,-68,-91,-62,-124,-141,-127,-111,-120,-113,-135,-57,-233,-211,-205,-214,-335,-324,-531,-521,-2375,-2346,-1979,-1864,-1735,-1671]} 1. d4 {[%emt 0:00:03]} Nf6 {[%emt 0:00:23]} 2. c4 {[%emt 0:00:11]} g6 {[%emt 0:00:05]} 3. Nc3 {[%emt 0:00:05]} Bg7 {[%emt 0:00:06]} 4. g3 {[%emt 0:00:03]} O-O {[%emt 0:00:07]} 5. Bg2 {[%emt 0:00:01]} d6 {[%emt 0:00:19]} 6. Nf3 {[%emt 0:00:05]} c6 {[%emt 0:00:07]} 7. e4 {[%emt 0:00:06]} Nbd7 {[%emt 0:00:07]} 8. O-O {[%emt 0:00:13]} e5 {[%emt 0:00:05]} 9. h3 {[%emt 0:00:25]} Qa5 {[%emt 0:00:16]} 10. Re1 {[%emt 0:00:20]} exd4 {[%emt 0:00:24]} 11. Nxd4 {[%emt 0:00:05]} Ne5 {[%emt 0:00:14]} 12. Bf1 {[%emt 0:00:14]} Qb6 $1 {[%emt 0:00:08][%cal Ob6d4][%mdl 4] is currently scoring better than 12...Re8. E69: King's Indian: Fianchetto: 6...Nbd7 7 0-0 e5 8 e4 c6 9 h3.} 13. Be3 {[%emt 0:01:16][%cal Od4b5]} c5 $1 {[%emt 0:00:21]} (13... Qxb2 $2 14. Na4 $18) 14. Ndb5 {[%emt 0:00:22]} Be6 {[%emt 0:11:36] [#] The position is equal.} 15. a4 $146 {[%emt 0:00:12][%cal Ba2a4,Ba4a5][%mdl 32]} (15. Qxd6 Nf3+ 16. Kg2 Nxe1+ 17. Rxe1 Qxd6 18. Nxd6 b6 $15) ({Predecessor:} 15. b3 a6 16. Na3 Qa5 17. Bd2 Qxa3 18. Nb1 Qb2 19. Bc3 Qxa1 20. Bxa1 Rad8 21. Nc3 {½-½ Kucuksari,K (2362)-Siva,M (2349) Titled Tuesday intern op 15th Feb Early blitz 2022 (8)}) 15... a6 {[%emt 0:03:51]} (15... Bxc4 16. f4 Bxb5 17. a5 $16 (17. axb5 Ned7 $11) (17. Nxb5 Nc6 $11)) 16. a5 {[%emt 0:00:11]} (16. Nxd6 Rfd8 17. f4 Rxd6 $17) 16... Qc6 {[%emt 0:00:46]} 17. Nd5 $1 {[%emt 0:00:31]} (17. Nxd6 Rfd8 18. f4 Rxd6 $17) 17... Rfe8 {[%emt 0:03:21] Against Ne7+} (17... Rae8 $1 $11 18. Nbc3 Qd7) 18. Nbc3 $1 $16 {[%emt 0:11:34]} Bxd5 {[%emt 0:03:20]} 19. exd5 {[%emt 0:00:40]} (19. cxd5 {is interesting.} Qc8 20. Kg2 h5 21. f4) 19... Qc8 {[%emt 0:00:53]} 20. f4 {[%emt 0:14:21] [#]} (20. Kg2 $16 {keeps the pressure on.}) 20... Nxc4 $1 $17 {[%emt 0:11:41][%mdl 64] Discovered Attack, Double Attack} 21. Bf2 {[%emt 0:24:49]} ({Of course not} 21. Bxc4 Qxh3 22. Qf3 Rxe3 23. Rxe3 Ng4 $17) 21... b5 {[%emt 0:00:41] Black is more active.} 22. axb6 {[%emt 0:04:42]} Nxb6 {[%emt 0:00:20]} (22... Nxb2 $2 23. Qb3 Rb8 24. Rxe8+ (24. Qxb2 Ne4 $14) 24... Nxe8 25. Qxb2 $18) 23. Rxe8+ {[%emt 0:00:22]} Nxe8 {[%emt 0:00:37]} 24. Qb3 {[%emt 0:01:02]} Nd7 {[%emt 0:01:18]} 25. Qa4 {[%emt 0:02:20]} a5 {[%emt 0:01:12]} 26. Re1 {[%emt 0:03:43]} Ndf6 {[%emt 0:08:07]} 27. g4 {[%emt 0:05:09]} Nc7 {[%emt 0:02:50]} (27... Rb8 $17 28. Nb5 Qd7 29. Qxa5 Nxd5) 28. Qc6 $1 $15 {[%emt 0:01:15]} Nfe8 {[%emt 0:02:49][%cal Bf6e8,Be8c7,Bc7a8,Ba8b6,Bb6d7,Bd7e5][%mdl 32]} (28... Ncxd5 $2 29. Nxd5 (29. Qxd6 Nxc3 30. bxc3 h5 $11) 29... Qxc6 30. Ne7+ Kf8 31. Nxc6 $18) 29. Nb5 {[%emt 0:14:10]} (29. Ne4 $1 $11 {remains equal.}) 29... Qd8 {[%emt 0:01:35] White must now prevent ...Nxb5.} 30. b3 $1 {[%emt 0:01:33]} Rb8 {[%emt 0:02:36]} 31. Nxc7 {[%emt 0:12:30]} (31. Kg2 $15) 31... Nxc7 $17 {[%emt 0:00:02]} 32. Bc4 {[%emt 0:00:21]} Na8 {[%emt 0:11:38]} 33. Kg2 {[%emt 0:02:35]} Nb6 $1 {[%emt 0:00:12][%cal Oa5a4]} 34. Bd3 {[%emt 0:01:23] [#]} Bf8 {[%emt 0:07:43]} ({Black should try} 34... Bd4 $1 $17 {[%cal Rd4f2]} 35. g5 Bxf2 36. Kxf2 Rc8) 35. f5 $2 {[%emt 0:00:15] [#] This move loses the game for White.} ({Better is} 35. g5 $15) 35... Nd7 $1 $19 {[%emt 0:00:15] Threatens to win with ...Ne5.} 36. fxg6 {[%emt 0:00:12]} hxg6 {[%emt 0:00:18]} 37. Bc4 {[%emt 0:00:54]} (37. Bc2 {was called for.}) 37... Ne5 {[%emt 0:00:10]} 38. Qa6 {[%emt 0:00:24]} (38. Rxe5 dxe5 39. Bg3) 38... Qf6 {[%emt 0:00:33] Hoping for ...Qf3+. Black is clearly winning.} 39. Bg3 {[%emt 0:00:50][%cal Oe1e5] aiming for Rxe5!} Qf3+ {[%emt 0:00:22]} 40. Kh2 {[%emt 0:00:01]} Nxc4 {[%emt 0:00:08][%mdl 64] Remove Defender} 41. Qxc4 {[%emt 0:30:39]} Rxb3 {[%emt 0:30:06] Weighted Error Value: White=0.54/Black=0.15 (very precise)} 0-1

[Event "61st Mongolian-ch Open 2023"]
[Site "Khovd"]
[Date "2023.05.22"]
[Round "1.5"]
[White "Amilal Munkhdalai"]
[Black "Bulgankhan Ganzorig"]
[Result "1-0"]
[ECO "B53"]
[WhiteElo "2141"]
[BlackElo "2017"]
[Annotator "COMBH"]
[PlyCount "81"]
[EventDate "2023.05.22"]
[EventType "tourn"]
[EventCountry "MGL"]
[SourceTitle "playchess.com"]
[Source "ChessBase"]
[SourceQuality "1"]
[TimeControl "40/5400+30:1800+30"]

1. e4 {[%emt 0:00:02]} c5 {[%emt 0:00:06]} 2. Nf3 {[%emt 0:00:03]} d6 {[%emt 0:00:05]} 3. d4 {[%emt 0:00:07]} Nf6 {[%emt 0:00:04]} 4. Bb5+ {[%emt 0:00:38]} Bd7 {[%emt 0:00:35]} 5. Bxd7+ {[%emt 0:00:24]} Qxd7 {[%emt 0:00:06]} 6. dxc5 {[%emt 0:05:31]} Nxe4 {[%emt 0:02:06]} 7. cxd6 {[%emt 0:00:16]} Nxd6 {[%emt 0:00:05]} 8. O-O {[%emt 0:01:15]} Nc6 {[%emt 0:04:15]} 9. Qe2 {[%emt 0:02:40]} g6 {[%emt 0:00:43]} 10. Rd1 {[%emt 0:07:23]} Bg7 {[%emt 0:00:20]} 11. Na3 {[%emt 0:00:40]} O-O {[%emt 0:02:18]} 12. Nc4 {[%emt 0:03:13]} Rfe8 {[%emt 0:06:54]} 13. c3 {[%emt 0:06:04]} Rad8 {[%emt 0:03:53]} 14. Nxd6 {[%emt 0:03:39]} exd6 {[%emt 0:00:07]} 15. Qd3 {[%emt 0:00:41]} h6 {[%emt 0:01:10]} 16. Be3 {[%emt 0:01:36]} d5 {[%emt 0:05:41]} 17. Rd2 {[%emt 0:01:20]} Qe6 {[%emt 0:09:45]} 18. h3 {[%emt 0:05:50]} Qe4 {[%emt 0:13:10]} 19. Rad1 {[%emt 0:09:57]} Qa4 {[%emt 0:00:30]} 20. Qb1 {[%emt 0:00:56]} Qb5 {[%emt 0:00:30]} 21. Qc2 {[%emt 0:01:15]} Qc4 {[%emt 0:00:23]} 22. a3 {[%emt 0:13:01]} Na5 {[%emt 0:05:56]} 23. Bxa7 {[%emt 0:03:11]} Nb3 {[%emt 0:01:28]} 24. Rd3 {[%emt 0:00:18]} d4 {[%emt 0:05:09]} 25. Bxd4 {[%emt 0:01:34]} Nxd4 {[%emt 0:02:46]} 26. Nxd4 {[%emt 0:00:05]} Bxd4 {[%emt 0:02:33]} 27. Rxd4 {[%emt 0:00:09]} Rxd4 {[%emt 0:00:04]} 28. Rxd4 {[%emt 0:00:04]} Re1+ {[%emt 0:00:05]} 29. Kh2 {[%emt 0:00:03]} Qc7+ {[%emt 0:01:13]} 30. f4 {[%emt 0:00:08]} Qe7 {[%emt 0:00:25]} 31. Qd2 {[%emt 0:02:23]} Re4 {[%emt 0:03:36]} 32. Rxe4 {[%emt 0:03:01]} Qxe4 {[%emt 0:00:06]} 33. Qd8+ {[%emt 0:00:07]} Kh7 {[%emt 0:00:10]} 34. Qf6 {[%emt 0:00:15]} Kg8 {[%emt 0:00:09]} 35. b4 {[%emt 0:00:28]} Qe3 {[%emt 0:00:47]} 36. a4 {[%emt 0:02:28]} h5 {[%emt 0:00:14]} 37. a5 {[%emt 0:04:00]} Qe1 {[%emt 0:01:42]} 38. Qe5 {[%emt 0:02:10]} Qd2 {[%emt 0:01:34]} 39. b5 {[%emt 0:05:14]} Qa2 {[%emt 0:00:37]} 40. a6 {[%emt 0:01:49]} bxa6 {[%emt 0:01:15]} 41. b6 {[%emt 0:30:10]} 1-0